bitfinex/quotes_BTCUSD_20250829
["timestamp","ask_amount","ask_price","bid_price","bid_amount"]
[1756506254276,0.24589791,108600.0,108590.0,0.51701324]
[1756506254405,0.00047512,108600.0,108590.0,0.51701324]
[1756506254797,0.650856,108610.0,108590.0,0.51701324]
[1756506254989,0.65090348,108610.0,108600.0,0.15532]
[1756506256894,0.66101305,108610.0,108600.0,0.15532]
[1756506257090,0.66101305,108610.0,108600.0,0.20702132]
[1756506257913,0.66101305,108610.0,108600.0,0.05170132]
[1756506258167,0.66101305,108610.0,108600.0,0.20702132]
[1756506259642,0.23148803,108610.0,108600.0,0.20702132]
[1756506259847,0.66101305,108610.0,108600.0,0.20702132]
[1756506261625,0.66101305,108610.0,108600.0,0.15532]
[1756506264766,0.66101305,108610.0,108600.0,0.43293838]
[1756506264767,0.22218215,108610.0,108600.0,0.43293838]
[1756506264969,0.19450215,108610.0,108600.0,0.8624634]
[1756506265329,0.19450215,108610.0,108600.0,0.43293838]
[1756506265662,0.19450215,108610.0,108600.0,0.8624634]
[1756506266681,0.19450215,108610.0,108600.0,0.8901394]
[1756506266902,0.19450215,108610.0,108600.0,0.93235166]
[1756506267691,0.19450215,108610.0,108600.0,0.59112296]
[1756506269692,0.62402717,108610.0,108600.0,0.28578858]
[1756506270119,0.38911836,108610.0,108600.0,0.28578858]
[1756506270315,0.60094146,108610.0,108600.0,0.28578858]
[1756506270846,0.60094146,108610.0,108600.0,0.28882858]
[1756506271154,0.60094146,108610.0,108600.0,0.13354858]
[1756506271298,0.2118231,108610.0,108600.0,0.33229089]
[1756506271489,0.64134812,108610.0,108600.0,0.33229089]
[1756506275138,0.65028613,108610.0,108600.0,0.33229089]
[1756506277192,0.22076111,108610.0,108600.0,0.33441089]
[1756506277370,0.65028613,108610.0,108600.0,0.33441089]
[1756506279813,0.62260813,108610.0,108600.0,0.33441089]
[1756506281570,0.19308311,108610.0,108600.0,0.17913089]
[1756506281775,0.62260813,108610.0,108600.0,0.33437089]
[1756506282966,0.62260813,108610.0,108600.0,0.29215863]
[1756506288314,0.43432412,108610.0,108600.0,0.29215863]
[1756506288517,0.61846922,108610.0,108600.0,0.29215863]
[1756506293377,0.61846922,108610.0,108600.0,0.13691863]
[1756506293592,0.61846922,108610.0,108600.0,0.29215863]
[1756506293743,0.61846922,108610.0,108600.0,0.13691863]
[1756506294084,0.61846922,108610.0,108600.0,0.29215863]
[1756506294845,0.61846922,108610.0,108600.0,0.13691863]
[1756506295063,0.61846922,108610.0,108600.0,0.29215863]
[1756506296786,0.61846922,108610.0,108600.0,0.28941492]
[1756506299669,0.1889442,108610.0,108600.0,0.28941492]
[1756506299841,0.61846922,108610.0,108600.0,0.28941492]
[1756506300185,0.1889442,108610.0,108600.0,0.28941492]
[1756506300601,0.61846922,108610.0,108600.0,0.28937492]
[1756506300830,0.61846922,108610.0,108600.0,0.29521984]
[1756506301042,0.61846922,108610.0,108600.0,0.14001984]
[1756506301271,0.1889442,108610.0,108600.0,0.29521984]
[1756506301598,0.61846922,108610.0,108600.0,0.29521984]
[1756506301834,0.1889442,108610.0,108600.0,0.28421492]
[1756506302061,0.61846922,108610.0,108600.0,0.28421492]
[1756506302282,0.61846922,108610.0,108600.0,0.28727492]
[1756506303160,0.61846922,108610.0,108600.0,0.28930492]
[1756506306694,0.1889442,108610.0,108600.0,0.28930492]
[1756506306849,0.61846922,108610.0,108600.0,0.28930492]
[1756506307708,0.61846922,108610.0,108600.0,0.13410492]
[1756506307866,0.61846922,108610.0,108600.0,0.28930492]
[1756506310641,0.61846922,108610.0,108600.0,0.13410492]
[1756506310900,0.61846922,108610.0,108600.0,0.28926492]
[1756506311566,0.61846922,108610.0,108600.0,0.12901492]
[1756506311778,0.61846922,108610.0,108600.0,0.28417492]
[1756506312535,0.61846922,108610.0,108600.0,0.28723492]
[1756506312971,0.61846922,108610.0,108600.0,0.24651632]
[1756506314252,0.61846922,108610.0,108600.0,0.24854632]
[1756506324450,0.61846922,108610.0,108600.0,0.15818]
[1756506324651,0.61846922,108610.0,108600.0,0.00306]
[1756506324885,0.61846922,108610.0,108600.0,0.15818]
[1756506326600,0.61846922,108610.0,108600.0,0.16023]
[1756506329878,0.61846922,108610.0,108600.0,0.00511]
[1756506330088,0.61846922,108610.0,108600.0,0.16023]
[1756506330517,0.61846922,108610.0,108600.0,0.16019]
[1756506333478,0.1889442,108610.0,108600.0,0.16019]
[1756506333708,0.61846922,108610.0,108600.0,0.16019]
[1756506335233,0.61846922,108610.0,108600.0,0.15508]
[1756506335511,0.61846922,108610.0,108590.0,0.0924479]
[1756506335512,0.18416206,108600.0,108590.0,0.07403]
[1756506335799,0.61368708,108600.0,108590.0,0.22911]
[1756506336057,0.61368708,108600.0,108590.0,0.23116]
[1756506336841,0.61368708,108600.0,108590.0,0.23216]
[1756506339179,0.61368708,108600.0,108590.0,0.07708]
[1756506339397,0.61368708,108600.0,108590.0,0.16136]
[1756506340239,0.64136708,108600.0,108590.0,0.16136]
[1756506340665,0.21184206,108600.0,108590.0,0.16136]
[1756506340876,0.64136708,108600.0,108590.0,0.16136]
[1756506341903,1.0708921,108600.0,108590.0,0.00628]
[1756506342106,1.0708921,108600.0,108590.0,0.15604]
[1756506343982,1.4108921,108600.0,108590.0,0.15604]
[1756506345842,1.4108921,108600.0,108590.0,0.001]
[1756506346048,1.4108921,108600.0,108590.0,0.15604]
[1756506347029,1.4108921,108600.0,108590.0,1e-08]
[1756506347030,7.08375344,108600.0,108590.0,1e-08]
[1756506347231,7.20440925,108600.0,108590.0,1e-08]
[1756506347601,7.68517336,108600.0,108590.0,1e-08]
[1756506348135,0.18422991,108560.0,108550.0,0.0753443]
[1756506348339,0.18422991,108560.0,108550.0,0.0741643]
[1756506348537,0.33926991,108560.0,108550.0,0.0773943]
[1756506348808,0.18422746,108570.0,108550.0,0.60724799]
[1756506349010,0.52422746,108570.0,108560.0,0.15824]
[1756506349187,0.18422746,108570.0,108560.0,0.16033]
[1756506349362,0.98144148,108570.0,108560.0,0.0032]
[1756506349570,0.18424689,108550.0,108540.0,0.0708]
[1756506349763,0.18424689,108550.0,108540.0,0.31461144]
[1756506349969,0.18424689,108550.0,108540.0,0.33628675]
[1756506350410,0.61377191,108550.0,108540.0,0.19255344]
[1756506350587,0.61377191,108550.0,108540.0,0.16080512]
[1756506350588,0.18424689,108550.0,108540.0,0.16080512]
[1756506350789,0.18422991,108560.0,108540.0,0.68092975]
[1756506350988,0.21193989,108550.0,108540.0,0.67542646]
[1756506351195,0.21193989,108550.0,108540.0,0.24590144]
[1756506351428,0.61377191,108550.0,108540.0,0.15760512]
[1756506351574,0.21194089,108550.0,108540.0,0.16080512]
[1756506351781,0.21194089,108550.0,108540.0,0.70359563]
[1756506352155,0.64146591,108550.0,108540.0,0.00776512]
[1756506352362,0.64146591,108550.0,108540.0,0.16195512]
[1756506352590,0.21194089,108550.0,108540.0,0.16204512]
[1756506352799,0.21194089,108550.0,108540.0,0.59457014]
[1756506353044,0.21194089,108550.0,108540.0,0.59357014]
[1756506353303,0.21194089,108550.0,108540.0,0.16404512]
[1756506353774,0.21194089,108550.0,108540.0,0.59357014]
[1756506354617,0.21194089,108550.0,108540.0,0.2303075]
[1756506354821,0.21194089,108550.0,108540.0,0.59357014]
[1756506355204,0.21194089,108550.0,108540.0,0.59557014]
[1756506355412,0.21194089,108550.0,108540.0,0.16604512]
[1756506355609,0.21194089,108550.0,108540.0,0.59557014]
[1756506356181,0.22079747,108550.0,108540.0,1.02509516]
[1756506356389,0.22079747,108550.0,108540.0,0.25434144]
[1756506356648,0.22079747,108550.0,108540.0,0.59557014]
[1756506357755,0.22079747,108550.0,108540.0,0.16604512]
[1756506357974,0.22079747,108550.0,108540.0,0.00867512]
[1756506358419,0.37659747,108550.0,108540.0,0.01076512]
[1756506358863,0.37659747,108550.0,108540.0,0.00776512]
[1756506359570,0.37659747,108550.0,108540.0,0.00567512]
[1756506360281,0.22079747,108550.0,108540.0,0.00776512]
[1756506360530,0.22079747,108550.0,108540.0,0.43729014]
[1756506361841,0.22079747,108550.0,108540.0,0.00776512]
[1756506362324,0.22079747,108550.0,108540.0,0.00567512]
[1756506362530,0.22079747,108550.0,108540.0,0.00776512]
[1756506363602,0.99032249,108550.0,108540.0,0.00247512]
[1756506363809,0.64909379,108550.0,108540.0,0.00247512]
[1756506364011,1.50814383,108550.0,108540.0,0.00247512]
[1756506364452,6.50814383,108550.0,108540.0,0.00247512]
[1756506364857,6.50814383,108550.0,108540.0,0.00047512]
[1756506365483,6.07993224,108550.0,108540.0,0.00047512]
[1756506366030,5.56179747,108550.0,108540.0,0.00047512]
[1756506366236,0.71799747,108550.0,108540.0,0.00576512]
[1756506366436,0.71795747,108550.0,108540.0,0.00576512]
[1756506367265,0.56179747,108550.0,108540.0,0.00576512]
[1756506367431,0.22179747,108550.0,108540.0,0.00576512]
[1756506367829,0.22179747,108550.0,108540.0,0.19002898]
[1756506367830,0.21294089,108550.0,108540.0,0.19002898]
[1756506368029,0.001,108550.0,108540.0,0.76121057]
[1756506368280,0.18422991,108560.0,108540.0,0.76121057]
[1756506368479,0.18422991,108560.0,108550.0,0.15952]
[1756506368685,0.18422991,108560.0,108550.0,0.16161]
[1756506369164,0.19161274,108560.0,108550.0,0.16161]
[1756506369563,0.19161274,108560.0,108550.0,0.00529]
[1756506369738,0.18424689,108550.0,108540.0,0.00247512]
[1756506369941,0.77044534,108550.0,108540.0,0.00247512]
[1756506370197,0.77044534,108550.0,108540.0,0.00047512]
[1756506370529,0.79814234,108550.0,108540.0,0.00047512]
[1756506370742,0.36830389,108550.0,108540.0,0.00047512]
[1756506370971,0.79814234,108550.0,108540.0,0.00047512]
[1756506371318,0.79814234,108550.0,108540.0,0.00147512]
[1756506371641,0.79914234,108550.0,108540.0,0.00147512]
[1756506373583,0.36930389,108550.0,108540.0,0.00467512]
[1756506373767,0.79914234,108550.0,108540.0,0.00467512]
[1756506373960,0.79914234,108550.0,108540.0,0.00147512]
[1756506374478,0.81637764,108550.0,108540.0,0.00147512]
[1756506375107,1.15637764,108550.0,108540.0,0.00147512]
[1756506375316,1.15926135,108550.0,108540.0,0.00147512]
[1756506375730,0.7294229,108550.0,108540.0,0.00467512]
[1756506376145,1.17913358,108550.0,108540.0,0.00467512]
[1756506376495,1.17913358,108550.0,108540.0,0.00676512]
[1756506377282,1.17913358,108550.0,108540.0,0.00467512]
[1756506378447,1.17913358,108550.0,108540.0,0.00147512]
[1756506378854,0.74929513,108550.0,108540.0,0.00463512]
[1756506379038,1.17913358,108550.0,108540.0,0.00463512]
[1756506379443,1.17913358,108550.0,108540.0,0.00147512]
[1756506379824,6.2674299,108550.0,108540.0,0.00147512]
[1756506380031,6.29230429,108550.0,108540.0,0.00147512]
[1756506380650,5.89559518,108550.0,108540.0,0.00147512]
[1756506380863,6.33550866,108550.0,108540.0,0.00147512]
[1756506381062,5.81101886,108550.0,108540.0,0.00147512]
[1756506381324,1.20772797,108550.0,108540.0,0.00147512]
[1756506381463,6.71133352,108550.0,108540.0,1e-08]
[1756506381661,6.75576526,108550.0,108540.0,1e-08]
[1756506381891,6.61568842,108550.0,108540.0,1e-08]
[1756506382138,6.34652997,108550.0,108540.0,1e-08]
[1756506382271,6.77636842,108550.0,108540.0,1e-08]
[1756506382477,0.1843148,108510.0,108500.0,0.77493021]
[1756506382677,0.1843148,108510.0,108500.0,0.86525653]
[1756506383123,0.2120168,108510.0,108500.0,0.86841653]
[1756506383304,0.2120168,108510.0,108500.0,0.43857808]
[1756506383784,0.2120168,108510.0,108500.0,0.25424632]
[1756506384189,0.1843148,108510.0,108500.0,0.34254264]
[1756506384416,0.1843148,108510.0,108500.0,0.52987443]
[1756506384816,0.2120058,108520.0,108500.0,0.44157811]
[1756506385023,0.2120058,108520.0,108510.0,0.00316]
[1756506385382,0.2120058,108520.0,108510.0,0.00519]
[1756506386842,0.2120058,108520.0,108510.0,0.00619]
[1756506387425,0.1843048,108520.0,108510.0,0.00619]
[1756506387627,0.1843048,108520.0,108510.0,0.00719]
[1756506388707,0.61414325,108520.0,108510.0,0.00516]
[1756506388982,0.95414325,108520.0,108510.0,0.029701]
[1756506389188,0.95414325,108520.0,108510.0,0.002]
[1756506389423,0.97399711,108520.0,108510.0,0.002]
[1756506389593,0.99123014,108520.0,108510.0,0.002]
[1756506389794,6.07952646,108520.0,108510.0,0.001]
[1756506390013,6.08241113,108520.0,108510.0,0.001]
[1756506390158,6.08241113,108520.0,108510.0,0.002]
[1756506390559,0.18433179,108500.0,108490.0,0.03131348]
[1756506390759,0.77481024,108500.0,108490.0,0.00044748]
[1756506391008,0.77481024,108500.0,108490.0,0.00360748]
[1756506391206,0.80251824,108500.0,108490.0,0.00360748]
[1756506391920,0.80251824,108500.0,108490.0,0.00663748]
[1756506392830,0.80251824,108500.0,108490.0,0.00763748]
[1756506393050,1.14251824,108500.0,108490.0,0.00244748]
[1756506393278,1.14251824,108500.0,108490.0,0.00044748]
[1756506393705,6.3214783,108500.0,108490.0,0.00044748]
[1756506393909,0.52434878,108490.0,108480.0,0.0004]
[1756506394115,5.95418723,108490.0,108480.0,0.00044749]
[1756506394375,0.95418723,108490.0,108480.0,0.00044749]
[1756506394592,1.13451554,108490.0,108480.0,0.00044749]
[1756506395801,1.13551554,108490.0,108480.0,0.00044749]
[1756506396206,1.11570723,108490.0,108480.0,0.00044749]
[1756506396776,1.12327476,108490.0,108480.0,0.00044749]
[1756506397375,1.14405138,108490.0,108480.0,0.00044749]
[1756506397794,1.14393138,108490.0,108480.0,0.00044749]
[1756506399869,1.17164538,108490.0,108480.0,0.00044749]
[1756506400223,1.14392658,108490.0,108480.0,0.00044749]
[1756506400427,0.69431631,108490.0,108480.0,0.00044749]
[1756506400668,0.96375476,108490.0,108480.0,0.00044749]
[1756506400885,1.12403476,108490.0,108480.0,0.00044749]
[1756506401091,0.69419631,108490.0,108480.0,0.00044749]
[1756506401463,1.12403476,108490.0,108480.0,0.00044749]
[1756506401832,0.53391631,108490.0,108480.0,0.00563749]
[1756506402021,0.69419631,108490.0,108480.0,0.00563749]
[1756506402432,1.12403476,108490.0,108480.0,0.00563749]
[1756506402813,1.12303476,108490.0,108480.0,0.00563749]
[1756506403220,1.12203476,108490.0,108480.0,0.00360749]
[1756506403420,1.12203476,108490.0,108480.0,0.00044749]
[1756506403749,1.12203476,108490.0,108480.0,0.00144749]
[1756506404347,1.12203476,108490.0,108480.0,0.00044749]
[1756506404572,1.12403476,108490.0,108480.0,0.00144749]
[1756506405181,1.12403476,108490.0,108480.0,0.00460749]
[1756506405734,1.12403476,108490.0,108480.0,0.00360749]
[1756506405947,1.12387476,108490.0,108480.0,0.00044749]
[1756506406162,6.69149068,108490.0,108480.0,0.00044749]
[1756506407339,6.26165223,108490.0,108480.0,0.00044749]
[1756506407646,6.73350898,108490.0,108480.0,1e-08]
[1756506409006,6.70380694,108490.0,108480.0,1e-08]
[1756506409200,6.73693628,108490.0,108480.0,1e-08]
[1756506409515,6.70380694,108490.0,108480.0,1e-08]
[1756506409967,6.73152494,108490.0,108480.0,1e-08]
[1756506410353,6.76465428,108490.0,108480.0,1e-08]
[1756506410748,6.79435632,108490.0,108480.0,1e-08]
[1756506411155,7.24385632,108490.0,108480.0,1e-08]
[1756506412245,7.08373632,108490.0,108480.0,1e-08]
[1756506412423,7.24650228,108490.0,108480.0,1e-08]
[1756506413579,7.22165356,108490.0,108480.0,1e-08]
[1756506414993,7.06177356,108490.0,108480.0,1e-08]
[1756506415203,7.1918029,108490.0,108480.0,1e-08]
[1756506415614,6.60224977,108490.0,108480.0,1e-08]
[1756506415816,6.76192977,108490.0,108480.0,0.00306001]
[1756506416024,6.76192977,108490.0,108480.0,0.00516001]
[1756506416025,6.17241132,108490.0,108480.0,0.00516001]
[1756506416236,6.72290371,108490.0,108480.0,0.00516001]
[1756506416443,1.13496739,108490.0,108480.0,0.00516001]
[1756506416652,1.27022015,108490.0,108480.0,0.00516001]
[1756506416858,1.61022015,108490.0,108480.0,0.00516001]
[1756506417691,1.63496739,108490.0,108480.0,0.00516001]
[1756506418263,1.47496739,108490.0,108480.0,0.00516001]
[1756506418696,1.63488739,108490.0,108480.0,0.00516001]
[1756506419432,1.47496739,108490.0,108480.0,0.00516001]
[1756506419673,1.63488739,108490.0,108480.0,0.00516001]
[1756506420048,1.63480739,108490.0,108480.0,0.00516001]
[1756506420254,1.47496739,108490.0,108480.0,0.00516001]
[1756506420458,1.61006015,108490.0,108480.0,0.00516001]
[1756506420667,1.1802217,108490.0,108480.0,0.00516001]
[1756506420869,1.61006015,108490.0,108480.0,0.00516001]
[1756506423203,1.16056015,108490.0,108480.0,0.00516001]
[1756506424455,1.14337387,108490.0,108480.0,0.00516001]
[1756506424629,1.16061942,108490.0,108480.0,0.00516001]
[1756506426680,1.16061942,108490.0,108480.0,1e-08]
[1756506427128,1.16061942,108490.0,108480.0,0.00516001]
[1756506428587,1.24891574,108490.0,108480.0,1e-08]
[1756506428792,1.27366298,108490.0,108480.0,1e-08]
[1756506429230,1.24891574,108490.0,108480.0,1e-08]
[1756506430775,1.24891574,108490.0,108480.0,0.00516001]
[1756506430776,0.81871729,108490.0,108480.0,0.00516001]
[1756506430976,1.24855574,108490.0,108480.0,0.00516001]
[1756506431694,1.24843574,108490.0,108480.0,0.00516001]
[1756506432901,1.08907574,108490.0,108480.0,0.00516001]
[1756506433268,1.24839574,108490.0,108480.0,0.00516001]
[1756506435197,1.24840229,108490.0,108480.0,0.00516001]
[1756506435438,1.24840229,108490.0,108480.0,0.00306001]
[1756506435585,1.24840229,108490.0,108480.0,1e-08]
[1756506435970,0.81856384,108490.0,108480.0,1e-08]
[1756506436145,1.24840229,108490.0,108480.0,0.00306001]
[1756506436916,0.65924384,108490.0,108480.0,0.00516001]
[1756506437154,1.24816229,108490.0,108480.0,0.00516001]
[1756506438091,1.22838318,108490.0,108480.0,0.00516001]
[1756506438500,0.69291631,108490.0,108480.0,0.00516001]
[1756506439911,0.19191631,108490.0,108480.0,0.00516001]
[1756506442498,0.00054386,108490.0,108480.0,0.00516001]
[1756506442874,0.18551698,108490.0,108480.0,0.00516001]
[1756506443082,0.18434878,108490.0,108480.0,0.00516001]
[1756506444795,0.19214519,108490.0,108480.0,0.00516001]
[1756506445037,0.19214519,108490.0,108480.0,0.18952579]
[1756506445338,0.19214519,108490.0,108480.0,0.26990049]
[1756506446215,0.19214519,108490.0,108480.0,0.08553471]
[1756506446416,0.19214519,108490.0,108480.0,0.00516001]
[1756506447156,0.77321024,108500.0,108480.0,0.00516001]
[1756506447157,0.18433179,108500.0,108480.0,0.28012668]
[1756506447386,0.18433179,108500.0,108490.0,0.00313]
[1756506447586,0.18433179,108500.0,108490.0,0.00512]
[1756506448827,0.18633179,108500.0,108490.0,0.00512]
[1756506449052,0.18433179,108500.0,108490.0,0.00512]
[1756506449233,0.19206941,108500.0,108490.0,0.00512]
[1756506450612,0.18434878,108490.0,108480.0,1e-08]
[1756506450817,0.77290723,108490.0,108480.0,1e-08]
[1756506451452,0.77290723,108490.0,108480.0,0.00313001]
[1756506451857,0.77290723,108490.0,108480.0,0.00413001]
[1756506452236,0.77290723,108490.0,108480.0,0.00100001]
[1756506452437,0.77290723,108490.0,108480.0,0.00200001]
[1756506455982,1.11290723,108490.0,108480.0,0.00200001]
[1756506456802,1.11290723,108490.0,108480.0,1e-08]
[1756506459679,1.11490723,108490.0,108480.0,1e-08]
[1756506461079,1.14262123,108490.0,108480.0,1e-08]
[1756506461308,0.71234278,108490.0,108480.0,0.00313001]
[1756506461518,1.14218123,108490.0,108480.0,0.00313001]
[1756506461874,0.98390123,108490.0,108480.0,0.00313001]
[1756506462078,1.14218123,108490.0,108480.0,0.00313001]
[1756506463509,1.11446723,108490.0,108480.0,0.00512001]
[1756506463754,1.11442723,108490.0,108480.0,0.00512001]
[1756506464378,0.95618723,108490.0,108480.0,0.00512001]
[1756506464596,1.11438723,108490.0,108480.0,0.00512001]
[1756506467383,1.11426723,108490.0,108480.0,0.00512001]
[1756506471043,0.95618723,108490.0,108480.0,0.00512001]
[1756506471251,1.11414723,108490.0,108480.0,0.00512001]
[1756506471648,1.11414723,108490.0,108480.0,1e-08]
[1756506472453,1.11784223,108490.0,108480.0,1e-08]
[1756506475306,1.11784223,108490.0,108480.0,0.00511001]
[1756506475717,0.53004378,108490.0,108480.0,0.00511001]
[1756506475894,0.68776378,108490.0,108480.0,0.00511001]
[1756506476103,1.11760223,108490.0,108480.0,0.00511001]
[1756506480305,0.95988223,108490.0,108480.0,0.00511001]
[1756506480475,0.68390878,108490.0,108480.0,0.00511001]
[1756506480975,0.52634878,108490.0,108480.0,0.00511001]
[1756506481279,0.68386878,108490.0,108480.0,0.00511001]
[1756506481989,0.18434878,108490.0,108480.0,0.19178036]
[1756506482191,0.18634878,108490.0,108480.0,0.00511001]
[1756506482394,0.18434878,108490.0,108480.0,0.79051512]
[1756506482592,0.34954941,108500.0,108480.0,0.78821055]
[1756506482754,0.53206941,108500.0,108490.0,0.00309]
[1756506482950,0.53206941,108500.0,108490.0,0.00511]
[1756506484818,0.19206941,108500.0,108490.0,0.00511]
[1756506497525,0.19206941,108500.0,108490.0,0.00309]
[1756506497728,0.62190786,108500.0,108490.0,0.00511]
[1756506499282,0.19206941,108500.0,108490.0,0.00511]
[1756506499749,0.19206941,108500.0,108490.0,0.00309]
[1756506499983,0.19206941,108500.0,108490.0,0.00509]
[1756506502753,0.62190786,108500.0,108490.0,0.00509]
[1756506503197,0.62190786,108500.0,108490.0,0.00309]
[1756506504249,0.62190786,108500.0,108490.0,0.00509]
[1756506505629,0.62190786,108500.0,108490.0,0.00309]
[1756506506088,0.62190786,108500.0,108490.0,0.00509]
[1756506507807,0.19206941,108500.0,108490.0,0.00509]
[1756506512483,0.18434878,108490.0,108480.0,0.24505633]
[1756506512684,0.18434878,108490.0,108480.0,0.45267508]
[1756506512991,0.18434878,108490.0,108480.0,0.43142211]
[1756506513208,0.18434878,108490.0,108480.0,0.43444211]
[1756506513616,0.18434878,108490.0,108480.0,0.43544211]
[1756506513822,0.18434878,108490.0,108480.0,0.43644211]
[1756506514630,0.18434878,108490.0,108480.0,0.46717392]
[1756506517768,0.18434878,108490.0,108480.0,0.27968211]
[1756506517997,0.18434878,108490.0,108480.0,0.43640211]
[1756506518350,0.18434878,108490.0,108480.0,0.90783908]
[1756506520891,0.18434878,108490.0,108480.0,0.93554608]
[1756506523381,0.18434878,108490.0,108480.0,0.93579046]
[1756506523584,0.18434878,108490.0,108480.0,1.02408678]
[1756506527469,0.62215224,108500.0,108480.0,1.02408678]
[1756506527674,0.62215224,108500.0,108490.0,0.00302]
[1756506527874,0.62215224,108500.0,108490.0,0.00502]
[1756506531891,0.19206941,108500.0,108490.0,0.00502]
[1756506532131,0.62215224,108500.0,108490.0,0.00502]
[1756506533344,0.62215224,108500.0,108490.0,0.1615]
[1756506534809,0.62215224,108500.0,108490.0,0.1595]
[1756506535388,0.18434878,108490.0,108480.0,0.86337678]
[1756506535538,0.18434878,108490.0,108480.0,1.02181678]
[1756506536645,0.18434878,108490.0,108480.0,1.02281678]
[1756506536840,0.18434878,108490.0,108480.0,1.02381678]
[1756506537886,0.18434878,108490.0,108480.0,0.86733678]
[1756506538055,0.18434878,108490.0,108480.0,1.02381678]
[1756506547404,0.18434878,108490.0,108480.0,0.59373395]
[1756506547609,0.18434878,108490.0,108480.0,1.02381678]
[1756506549311,0.18434878,108490.0,108480.0,0.59373395]
[1756506549511,0.18434878,108490.0,108480.0,0.839451]
[1756506550209,0.18434878,108490.0,108480.0,0.839411]
[1756506553664,0.18434878,108490.0,108480.0,0.40932817]
[1756506553906,0.18434878,108490.0,108480.0,0.75111468]
[1756506555937,0.18434878,108490.0,108480.0,0.32103185]
[1756506556097,0.18434878,108490.0,108480.0,0.75111468]
[1756506557912,0.18434878,108490.0,108480.0,0.32103185]
[1756506558252,0.18434878,108490.0,108480.0,0.75111468]
[1756506558483,0.18434878,108490.0,108480.0,0.839411]
[1756506558836,0.18434878,108490.0,108480.0,1.02377678]
[1756506560658,0.18434878,108490.0,108480.0,0.839411]
[1756506564467,0.18434878,108490.0,108480.0,1.02377678]
[1756506566463,0.18434878,108490.0,108480.0,0.59369395]
[1756506566661,0.18434878,108490.0,108480.0,1.02377678]
[1756506567164,0.18434878,108490.0,108480.0,0.59369395]
[1756506567391,0.18434878,108490.0,108480.0,1.02377678]
[1756506571573,0.18434878,108490.0,108480.0,0.59369395]
[1756506571809,0.18434878,108490.0,108480.0,1.02377678]
[1756506572678,0.18434878,108490.0,108480.0,1.02373678]
[1756506577977,0.18434878,108490.0,108480.0,0.98213826]
[1756506578857,0.19354511,108510.0,108500.0,0.18433179]
[1756506579063,0.1843148,108510.0,108500.0,0.81293268]
[1756506579455,0.19351969,108520.0,108500.0,0.84063568]
[1756506579810,0.21530674,108520.0,108510.0,0.15961]
[1756506580160,0.21530674,108520.0,108510.0,0.15965]
[1756506580911,0.21530674,108520.0,108510.0,0.16065]
[1756506581508,0.64538957,108520.0,108510.0,0.001]
[1756506581708,0.64538957,108520.0,108510.0,0.1574]
[1756506582155,0.64538957,108520.0,108510.0,0.001]
[1756506582303,0.64538957,108520.0,108510.0,0.1584]
[1756506584548,0.64538957,108520.0,108510.0,0.002]
[1756506588530,0.64538957,108520.0,108510.0,0.00521]
[1756506595079,0.64538957,108520.0,108510.0,0.00733]
[1756506597029,0.64538957,108520.0,108510.0,0.00521]
[1756506597498,0.21530674,108520.0,108510.0,0.00521]
[1756506597666,0.64538957,108520.0,108510.0,0.00521]
[1756506598628,0.64538957,108520.0,108510.0,0.032912]
[1756506599029,0.64538957,108520.0,108510.0,0.035032]
[1756506600341,0.21530674,108520.0,108510.0,0.64942963]
[1756506600575,0.21530674,108520.0,108510.0,0.035032]
[1756506600777,0.64538957,108520.0,108510.0,0.189232]
[1756506601314,0.64538957,108520.0,108510.0,0.191352]
[1756506601542,0.02178705,108520.0,108510.0,0.97462247]
[1756506601745,0.19350481,108540.0,108520.0,0.18429491]
[1756506601965,0.19350481,108540.0,108530.0,0.00757351]
[1756506602163,0.19350481,108540.0,108530.0,0.59397634]
[1756506602363,0.77069843,108550.0,108530.0,0.89194699]
[1756506602364,0.1842956,108550.0,108530.0,0.89194699]
[1756506602572,0.3406156,108550.0,108530.0,0.97709331]
[1756506602790,0.20671154,108550.0,108540.0,0.43323283]
[1756506603009,0.20685388,108550.0,108540.0,0.00327]
[1756506604292,0.20680517,108550.0,108540.0,0.61761669]
[1756506604622,0.20880517,108550.0,108540.0,0.43335283]
[1756506604825,0.20780517,108550.0,108540.0,0.187243]
[1756506605029,0.20880517,108550.0,108540.0,0.187243]
[1756506605176,0.20780517,108550.0,108540.0,0.187243]
[1756506605622,0.20880517,108550.0,108540.0,0.187243]
[1756506605996,0.20780517,108550.0,108540.0,0.187243]
[1756506606424,0.20680517,108550.0,108540.0,0.187243]
[1756506610555,0.20680517,108550.0,108540.0,0.80158969]
[1756506611349,0.20680517,108550.0,108540.0,0.81745262]
[1756506611557,0.20680517,108550.0,108540.0,0.61732583]
[1756506613151,0.20680517,108550.0,108540.0,0.187243]
[1756506613653,0.638868,108550.0,108540.0,0.187203]
[1756506614209,0.638868,108550.0,108540.0,0.030963]
[1756506614415,0.638868,108550.0,108540.0,0.187203]
[1756506616618,0.20680517,108550.0,108540.0,0.187203]
[1756506616910,0.20680517,108550.0,108540.0,0.27549932]
[1756506617453,0.20680517,108550.0,108540.0,0.187203]
[1756506619430,0.20875517,108550.0,108540.0,0.187203]
[1756506619637,0.638838,108550.0,108540.0,0.187203]
[1756506619785,0.636888,108550.0,108540.0,0.187203]
[1756506623339,0.638838,108550.0,108540.0,0.187203]
[1756506624456,0.638838,108550.0,108540.0,0.187163]
[1756506627227,0.20875517,108550.0,108540.0,0.187163]
[1756506627399,0.20680517,108550.0,108540.0,0.27545932]
[1756506627591,0.638838,108550.0,108540.0,0.27545932]
[1756506627836,0.638838,108550.0,108540.0,0.187163]
[1756506630155,0.20680517,108550.0,108540.0,0.187163]
[1756506631933,0.00014234,108550.0,108540.0,1.31988884]
[1756506632130,0.00014234,108550.0,108540.0,1.34082766]
[1756506632271,0.00014234,108550.0,108540.0,1.49082766]
[1756506632478,0.00014234,108550.0,108540.0,1.57912398]
[1756506633318,0.00014234,108550.0,108540.0,1.58112398]
[1756506633524,0.00014234,108550.0,108540.0,1.57912398]
[1756506633936,0.00014234,108550.0,108540.0,1.58312398]
[1756506634157,0.00014234,108550.0,108540.0,1.60295085]
[1756506634744,0.00014234,108550.0,108540.0,2.37303368]
[1756506635175,0.00014234,108550.0,108540.0,1.94295085]
[1756506635344,0.00014234,108550.0,108540.0,1.94195085]
[1756506635724,0.00014234,108550.0,108540.0,1.94395085]
[1756506635927,0.00014234,108550.0,108540.0,1.94391085]
[1756506637377,0.00014234,108550.0,108540.0,1.94259413]
[1756506637608,0.00014234,108550.0,108540.0,1.78643413]
[1756506637778,0.00014234,108550.0,108540.0,1.94255413]
[1756506638219,0.00014234,108550.0,108540.0,1.06387832]
[1756506638550,0.00014234,108550.0,108540.0,1.92272726]
[1756506638907,0.60893743,108580.0,108550.0,0.20517036]
[1756506639138,0.18421384,108570.0,108560.0,0.24441632]
[1756506639327,0.18616384,108570.0,108560.0,0.43174623]
[1756506639499,0.18616384,108570.0,108560.0,0.46145223]
[1756506640384,0.2054556,108570.0,108560.0,0.46145223]